[Event "*** SCC Grand Prix: Titled Tuesday Blitz"]
[Site "Chess.com"]
[Date "2020.10.06"]
[Round "3"]
[White "zajka-molotok"]
[Black "Zq1"]
[Result "0-1"]
[WhiteElo "2471"]
[BlackElo "2525"]
[TimeControl "180+1"]
[EndTime "10:26:36 PDT"]
[Termination "Zq1 won on time"]

1. d4 {[%clk 0:03:00.9]} 1... Nf6 {[%clk 0:02:59.1]} 2. c4 {[%clk 0:03:00.5]}
2... a6 {[%clk 0:02:58.7]} 3. a4 {[%clk 0:02:53.7]} 3... e6 {[%clk 0:02:58]} 4.
Nc3 {[%clk 0:02:51.4]} 4... d5 {[%clk 0:02:56.9]} 5. Nf3 {[%clk 0:02:36.5]} 5...
Bb4 {[%clk 0:02:51.1]} 6. Qb3 {[%clk 0:02:34.1]} 6... Nc6 {[%clk 0:02:47]} 7. e3
{[%clk 0:02:30.9]} 7... Qe7 {[%clk 0:02:38.9]} 8. Bd3 {[%clk 0:02:23.6]} 8...
Na5 {[%clk 0:02:33.8]} 9. Qa2 {[%clk 0:02:22.8]} 9... Ne4 {[%clk 0:02:23.6]} 10.
Bxe4 {[%clk 0:02:19.3]} 10... dxe4 {[%clk 0:02:23.2]} 11. Nd2 {[%clk 0:02:18.5]}
11... f5 {[%clk 0:02:20.7]} 12. O-O {[%clk 0:02:14.5]} 12... c5 {[%clk
0:02:11.7]} 13. Nb3 {[%clk 0:01:52.3]} 13... Nxb3 {[%clk 0:02:01]} 14. Qxb3
{[%clk 0:01:53.2]} 14... O-O {[%clk 0:01:53.8]} 15. Bd2 {[%clk 0:01:49.6]} 15...
Bd7 {[%clk 0:01:33.5]} 16. dxc5 {[%clk 0:01:34.6]} 16... Bxc5 {[%clk 0:01:30.5]}
17. a5 {[%clk 0:01:33.5]} 17... Bc6 {[%clk 0:01:24]} 18. Na4 {[%clk 0:01:31.2]}
18... Bd6 {[%clk 0:01:23.5]} 19. Qc2 {[%clk 0:01:19.1]} 19... Rf6 {[%clk
0:01:17.7]} 20. Bc3 {[%clk 0:01:17.2]} 20... Rg6 {[%clk 0:01:04.7]} 21. Rad1
{[%clk 0:00:35.1]} 21... f4 {[%clk 0:01:03.2]} 22. exf4 {[%clk 0:00:33.9]} 22...
e3 {[%clk 0:00:50.8]} 23. f3 {[%clk 0:00:31]} 23... Bxf4 {[%clk 0:00:48]} 24.
Rd4 {[%clk 0:00:11.4]} 24... e5 {[%clk 0:00:44.4]} 25. Rd3 {[%clk 0:00:04.6]}
25... Qh4 {[%clk 0:00:38.1]} 26. h3 {[%clk 0:00:03.5]} 26... Qg3 {[%clk
0:00:37.5]} 0-1

[Event "*** SCC Grand Prix: Titled Tuesday Blitz"]
[Site "Chess.com"]
[Date "2020.10.06"]
[Round "3"]
[White "dominikaf"]
[Black "shnitez"]
[Result "0-1"]
[WhiteElo "2269"]
[BlackElo "2550"]
[TimeControl "180+1"]
[EndTime "10:26:36 PDT"]
[Termination "shnitez won on time"]

1. d4 {[%clk 0:03:00.9]} 1... Nf6 {[%clk 0:02:59]} 2. Bf4 {[%clk 0:03:00.3]}
2... c6 {[%clk 0:02:58.1]} 3. e3 {[%clk 0:02:53.8]} 3... g5 {[%clk 0:02:57.9]}
4. Bg3 {[%clk 0:02:35.4]} 4... h5 {[%clk 0:02:57.4]} 5. h4 {[%clk 0:02:34.8]}
5... Ne4 {[%clk 0:02:57.7]} 6. Be5 {[%clk 0:02:10.6]} 6... f6 {[%clk 0:02:55.5]}
7. Be2 {[%clk 0:02:10.1]} 7... d6 {[%clk 0:02:19.1]} 8. Bxh5+ {[%clk 0:01:56]}
8... Kd7 {[%clk 0:02:19]} 9. Bf3 {[%clk 0:00:58.2]} 9... Qa5+ {[%clk 0:02:02.3]}
10. c3 {[%clk 0:00:54.3]} 10... Nxf2 {[%clk 0:01:58.4]} 11. Kxf2 {[%clk
0:00:49.5]} 11... fxe5 {[%clk 0:01:58.3]} 12. Nd2 {[%clk 0:00:25.3]} 12... exd4
{[%clk 0:01:51.3]} 13. exd4 {[%clk 0:00:20.5]} 13... gxh4 {[%clk 0:01:43.9]} 14.
Ne2 {[%clk 0:00:19.3]} 14... Kc7 {[%clk 0:01:40]} 15. Nc4 {[%clk 0:00:16]} 15...
Qg5 {[%clk 0:01:38.7]} 16. Qd2 {[%clk 0:00:14.1]} 16... Qxd2 {[%clk 0:01:15.5]}
17. Nxd2 {[%clk 0:00:15]} 17... Nd7 {[%clk 0:01:06.6]} 18. Nf4 {[%clk 0:00:15]}
18... Bh6 {[%clk 0:00:55.1]} 19. Ne6+ {[%clk 0:00:07.5]} 19... Kb8 {[%clk
0:00:54.7]} 20. Ne4 {[%clk 0:00:06.8]} 20... Nf6 {[%clk 0:00:51.5]} 21. Nxf6
{[%clk 0:00:06.8]} 21... Bxe6 {[%clk 0:00:51.2]} 22. Ng4 {[%clk 0:00:06.2]}
22... Bf4 {[%clk 0:00:50.1]} 23. Kf1 {[%clk 0:00:02.5]} 23... Kc7 {[%clk
0:00:48.1]} 24. Re1 {[%clk 0:00:02.1]} 24... Kd7 {[%clk 0:00:44.9]} 25. Re4
{[%clk 0:00:02.2]} 25... Raf8 {[%clk 0:00:43.2]} 26. Ke2 {[%clk 0:00:01.8]}
26... Bg3 {[%clk 0:00:41.9]} 27. Kd3 {[%clk 0:00:01.3]} 27... Bf5 {[%clk
0:00:41.8]} 28. Re1 {[%clk 0:00:01.1]} 28... d5 {[%clk 0:00:41.6]} 0-1

[Event "*** SCC Grand Prix: Titled Tuesday Blitz"]
[Site "Chess.com"]
[Date "2020.10.06"]
[Round "3"]
[White "ChronicUnhappiness"]
[Black "As0nchess"]
[Result "0-1"]
[WhiteElo "2277"]
[BlackElo "2507"]
[TimeControl "180+1"]
[EndTime "10:26:37 PDT"]
[Termination "As0nchess won on time"]

1. c4 {[%clk 0:03:00.9]} 1... c5 {[%clk 0:02:59.9]} 2. Nf3 {[%clk 0:02:59.8]}
2... Nc6 {[%clk 0:03:00.2]} 3. Nc3 {[%clk 0:02:59.4]} 3... g6 {[%clk 0:03:00.5]}
4. e3 {[%clk 0:02:53.4]} 4... Nf6 {[%clk 0:03:00.6]} 5. d4 {[%clk 0:02:53.6]}
5... cxd4 {[%clk 0:03:01.1]} 6. exd4 {[%clk 0:02:53.7]} 6... d5 {[%clk
0:03:01.5]} 7. cxd5 {[%clk 0:02:45.9]} 7... Nxd5 {[%clk 0:03:02.4]} 8. Qb3
{[%clk 0:02:43.4]} 8... Nxc3 {[%clk 0:03:01.6]} 9. Bc4 {[%clk 0:02:43.4]} 9...
e6 {[%clk 0:03:01.7]} 10. bxc3 {[%clk 0:02:30.4]} 10... Bg7 {[%clk 0:03:01.6]}
11. Ba3 {[%clk 0:02:24.2]} 11... Na5 {[%clk 0:03:01.4]} 12. Bb5+ {[%clk
0:02:23.7]} 12... Bd7 {[%clk 0:03:01.6]} 13. Qa4 {[%clk 0:02:18.1]} 13... Nc6
{[%clk 0:03:00.7]} 14. Qb3 {[%clk 0:01:51.5]} 14... Ne7 {[%clk 0:02:59]} 15.
Bxd7+ {[%clk 0:01:40.1]} 15... Qxd7 {[%clk 0:02:59.9]} 16. Ne5 {[%clk
0:01:39.8]} 16... Bxe5 {[%clk 0:02:59.3]} 17. dxe5 {[%clk 0:01:39.2]} 17...
O-O-O {[%clk 0:02:47.3]} 18. O-O {[%clk 0:01:10.6]} 18... Nf5 {[%clk 0:02:47]}
19. Rfe1 {[%clk 0:01:00]} 19... Qc6 {[%clk 0:02:46.6]} 20. Qb4 {[%clk 0:00:45]}
20... Rd2 {[%clk 0:02:40.8]} 21. Re4 {[%clk 0:00:35.3]} 21... Rhd8 {[%clk
0:02:35.6]} 22. h3 {[%clk 0:00:35.5]} 22... Kb8 {[%clk 0:02:25.1]} 23. Rc4
{[%clk 0:00:26]} 23... Qd5 {[%clk 0:02:18.2]} 24. Rc5 {[%clk 0:00:17.6]} 24...
Rd1+ {[%clk 0:02:12.1]} 25. Rxd1 {[%clk 0:00:16.9]} 25... Qxd1+ {[%clk 0:02:13]}
26. Kh2 {[%clk 0:00:17.7]} 26... b6 {[%clk 0:01:46.5]} 27. Rb5 {[%clk
0:00:15.2]} 27... Qd7 {[%clk 0:01:40]} 28. c4 {[%clk 0:00:13.2]} 28... Qd4
{[%clk 0:01:36.7]} 29. c5 {[%clk 0:00:09.7]} 29... Qxe5+ {[%clk 0:01:32.2]} 30.
f4 {[%clk 0:00:09.1]} 30... Qe3 {[%clk 0:01:23]} 31. Rxb6+ {[%clk 0:00:09]}
31... Ka8 {[%clk 0:01:20.3]} 32. Rd6 {[%clk 0:00:03.8]} 32... Rb8 {[%clk
0:01:01.6]} 33. Qc4 {[%clk 0:00:01.4]} 33... Qg3+ {[%clk 0:00:59]} 0-1

[Event "*** SCC Grand Prix: Titled Tuesday Blitz"]
[Site "Chess.com"]
[Date "2020.10.06"]
[Round "3"]
[White "brunomorado"]
[Black "icychess54"]
[Result "1-0"]
[WhiteElo "2437"]
[BlackElo "2247"]
[TimeControl "180+1"]
[EndTime "10:26:38 PDT"]
[Termination "brunomorado won on time"]

1. d4 {[%clk 0:03:00]} 1... d5 {[%clk 0:02:59.5]} 2. Nc3 {[%clk 0:03:00.1]} 2...
c5 {[%clk 0:02:59]} 3. e4 {[%clk 0:02:55.7]} 3... dxe4 {[%clk 0:02:57.4]} 4. d5
{[%clk 0:02:55.4]} 4... Nf6 {[%clk 0:02:56.6]} 5. Bg5 {[%clk 0:02:50.6]} 5...
Bf5 {[%clk 0:02:51]} 6. Nge2 {[%clk 0:02:31.6]} 6... Nbd7 {[%clk 0:02:44.5]} 7.
Ng3 {[%clk 0:02:30.4]} 7... Bg6 {[%clk 0:02:42.5]} 8. Bb5 {[%clk 0:02:29.7]}
8... a6 {[%clk 0:02:14]} 9. Be2 {[%clk 0:02:07.3]} 9... h6 {[%clk 0:02:11.1]}
10. Bf4 {[%clk 0:02:05.9]} 10... Bh7 {[%clk 0:02:02.9]} 11. h4 {[%clk
0:02:00.7]} 11... b5 {[%clk 0:01:44.1]} 12. Qd2 {[%clk 0:01:48.1]} 12... b4
{[%clk 0:01:19.7]} 13. Na4 {[%clk 0:01:45]} 13... Qa5 {[%clk 0:01:16.7]} 14. b3
{[%clk 0:01:32.6]} 14... Nb6 {[%clk 0:01:08.1]} 15. Nxb6 {[%clk 0:01:29.2]}
15... Qxb6 {[%clk 0:01:09]} 16. O-O {[%clk 0:01:28]} 16... O-O-O {[%clk
0:01:04.9]} 17. d6 {[%clk 0:01:03.8]} 17... exd6 {[%clk 0:00:58.3]} 18. a3
{[%clk 0:01:01.6]} 18... d5 {[%clk 0:00:25.1]} 19. axb4 {[%clk 0:01:00.6]} 19...
Qxb4 {[%clk 0:00:24.8]} 20. c3 {[%clk 0:00:44]} 20... Qb6 {[%clk 0:00:10.7]} 21.
Rxa6 {[%clk 0:00:43.2]} 21... Qb7 {[%clk 0:00:09.6]} 22. Rfa1 {[%clk 0:00:39.8]}
22... Be7 {[%clk 0:00:04]} 23. Ra8+ {[%clk 0:00:35.5]} 23... Kd7 {[%clk
0:00:03.8]} 24. R8a7 {[%clk 0:00:36.4]} 1-0

[Event "*** SCC Grand Prix: Titled Tuesday Blitz"]
[Site "Chess.com"]
[Date "2020.10.06"]
[Round "3"]
[White "tsvet2005"]
[Black "Balla_Tamas"]
[Result "1-0"]
[WhiteElo "2676"]
[BlackElo "2434"]
[TimeControl "180+1"]
[EndTime "10:26:39 PDT"]
[Termination "tsvet2005 won by resignation"]

1. d4 {[%clk 0:03:00.9]} 1... f5 {[%clk 0:02:57.8]} 2. Nf3 {[%clk 0:03:00.4]}
2... Nf6 {[%clk 0:02:57.4]} 3. c4 {[%clk 0:03:00]} 3... e6 {[%clk 0:02:57.1]} 4.
g3 {[%clk 0:02:58.9]} 4... d5 {[%clk 0:02:57.2]} 5. Bg2 {[%clk 0:02:59.1]} 5...
c6 {[%clk 0:02:57.8]} 6. O-O {[%clk 0:02:59.6]} 6... Bd6 {[%clk 0:02:57.9]} 7.
b3 {[%clk 0:03:00.3]} 7... Qe7 {[%clk 0:02:57.7]} 8. Qc2 {[%clk 0:02:57.5]} 8...
O-O {[%clk 0:02:56.9]} 9. Ne5 {[%clk 0:02:57.3]} 9... Nbd7 {[%clk 0:02:53]} 10.
Nd3 {[%clk 0:02:57.2]} 10... dxc4 {[%clk 0:02:49.7]} 11. bxc4 {[%clk 0:02:56.2]}
11... e5 {[%clk 0:02:49.6]} 12. e3 {[%clk 0:02:18.9]} 12... e4 {[%clk
0:02:42.6]} 13. Nf4 {[%clk 0:02:19.1]} 13... g5 {[%clk 0:02:38.8]} 14. Ne2
{[%clk 0:02:19.7]} 14... b6 {[%clk 0:02:32.5]} 15. Bb2 {[%clk 0:02:19.4]} 15...
Re8 {[%clk 0:02:08.4]} 16. Nd2 {[%clk 0:02:07.6]} 16... Nf8 {[%clk 0:02:05.5]}
17. Nb3 {[%clk 0:02:06]} 17... Ng6 {[%clk 0:01:58.9]} 18. c5 {[%clk 0:02:00.1]}
18... bxc5 {[%clk 0:01:58.2]} 19. dxc5 {[%clk 0:02:01]} 19... Be5 {[%clk
0:01:56.9]} 20. Nbd4 {[%clk 0:01:59.9]} 20... Bd7 {[%clk 0:01:54]} 21. Rfd1
{[%clk 0:01:56.5]} 21... Nd5 {[%clk 0:01:48.9]} 22. Qc4 {[%clk 0:01:49.6]} 22...
Kh8 {[%clk 0:01:46.7]} 23. Rab1 {[%clk 0:01:44.3]} 23... Rab8 {[%clk 0:01:45.7]}
24. Ba1 {[%clk 0:01:43.9]} 24... h6 {[%clk 0:01:29.6]} 25. Nc3 {[%clk
0:01:30.2]} 25... Nxc3 {[%clk 0:01:22]} 26. Qxc3 {[%clk 0:01:31.1]} 26... Kh7
{[%clk 0:01:20.7]} 27. Qa5 {[%clk 0:01:26]} 27... h5 {[%clk 0:00:38.2]} 28. Rxb8
{[%clk 0:01:11.9]} 28... Bxb8 {[%clk 0:00:38.1]} 29. Rb1 {[%clk 0:01:10.4]}
29... h4 {[%clk 0:00:37.4]} 30. Rb7 {[%clk 0:01:04.3]} 30... hxg3 {[%clk
0:00:37]} 31. hxg3 {[%clk 0:01:03.5]} 31... f4 {[%clk 0:00:20.2]} 32. Nxc6
{[%clk 0:01:00.3]} 32... Qe6 {[%clk 0:00:20.3]} 33. Nxb8 {[%clk 0:00:57.8]}
33... Rxb8 {[%clk 0:00:17.4]} 34. Rxb8 {[%clk 0:00:57.6]} 34... fxg3 {[%clk
0:00:18]} 35. fxg3 {[%clk 0:00:53.9]} 35... Qg4 {[%clk 0:00:18.2]} 36. Qe1
{[%clk 0:00:50]} 1-0

[Event "*** SCC Grand Prix: Titled Tuesday Blitz"]
[Site "Chess.com"]
[Date "2020.10.06"]
[Round "3"]
[White "topotun"]
[Black "Konavets"]
[Result "1/2-1/2"]
[WhiteElo "2747"]
[BlackElo "3001"]
[TimeControl "180+1"]
[EndTime "10:26:40 PDT"]
[Termination "Game drawn by repetition"]

1. e4 {[%clk 0:03:00.9]} 1... c5 {[%clk 0:02:58]} 2. Nf3 {[%clk 0:03:00.8]} 2...
e6 {[%clk 0:02:58]} 3. d4 {[%clk 0:03:00.9]} 3... cxd4 {[%clk 0:02:58.9]} 4.
Nxd4 {[%clk 0:03:01.7]} 4... Nc6 {[%clk 0:02:59.5]} 5. Nc3 {[%clk 0:03:01.9]}
5... a6 {[%clk 0:03:00.1]} 6. Be2 {[%clk 0:03:00.7]} 6... Nf6 {[%clk 0:02:59.5]}
7. a3 {[%clk 0:03:00.7]} 7... d6 {[%clk 0:02:58.3]} 8. Be3 {[%clk 0:03:00.6]}
8... Be7 {[%clk 0:02:58.7]} 9. f4 {[%clk 0:03:00.8]} 9... O-O {[%clk 0:02:57.1]}
10. g4 {[%clk 0:03:00.8]} 10... Nxd4 {[%clk 0:02:56.1]} 11. Qxd4 {[%clk
0:03:01.7]} 11... b5 {[%clk 0:02:55.1]} 12. g5 {[%clk 0:03:00.9]} 12... Nd7
{[%clk 0:02:54.9]} 13. O-O-O {[%clk 0:02:59.3]} 13... Bb7 {[%clk 0:02:55.1]} 14.
h4 {[%clk 0:02:59.3]} 14... Rc8 {[%clk 0:02:52]} 15. Kb1 {[%clk 0:02:57.5]}
15... Qa5 {[%clk 0:02:50.3]} 16. h5 {[%clk 0:02:32.8]} 16... Rxc3 {[%clk
0:02:38.5]} 17. Bd2 {[%clk 0:02:22]} 17... e5 {[%clk 0:02:36.5]} 18. fxe5 {[%clk
0:02:07]} 18... b4 {[%clk 0:02:07.8]} 19. exd6 {[%clk 0:01:33.5]} 19... Bxg5
{[%clk 0:01:15.2]} 20. axb4 {[%clk 0:01:33.3]} 20... Qa4 {[%clk 0:01:15.2]} 21.
Bxc3 {[%clk 0:01:19.3]} 21... Bf6 {[%clk 0:01:14.7]} 22. Qd3 {[%clk 0:00:56.2]}
22... Ne5 {[%clk 0:00:58.6]} 23. Qe3 {[%clk 0:00:43.5]} 23... Bc8 {[%clk
0:00:35.1]} 24. b3 {[%clk 0:00:32.3]} 24... Qa3 {[%clk 0:00:35.1]} 25. Rhf1
{[%clk 0:00:23.9]} 25... Be6 {[%clk 0:00:34.9]} 26. Rxf6 {[%clk 0:00:23.8]}
26... Bxb3 {[%clk 0:00:34.9]} 27. cxb3 {[%clk 0:00:17.4]} 27... Qxb3+ {[%clk
0:00:34.3]} 28. Ka1 {[%clk 0:00:14]} 28... Qa3+ {[%clk 0:00:31.9]} 29. Kb1
{[%clk 0:00:14.4]} 29... Qb3+ {[%clk 0:00:32.8]} 30. Ka1 {[%clk 0:00:14.7]}
30... Qa3+ {[%clk 0:00:29.7]} 31. Kb1 {[%clk 0:00:15.1]} 31... Qb3+ {[%clk
0:00:30.6]} 1/2-1/2

[Event "*** SCC Grand Prix: Titled Tuesday Blitz"]
[Site "Chess.com"]
[Date "2020.10.06"]
[Round "3"]
[White "chessfrendz"]
[Black "GelmanAlexander"]
[Result "0-1"]
[WhiteElo "2379"]
[BlackElo "2563"]
[TimeControl "180+1"]
[EndTime "10:26:48 PDT"]
[Termination "GelmanAlexander won on time"]

1. d4 {[%clk 0:03:00.9]} 1... Nf6 {[%clk 0:02:59.5]} 2. Nf3 {[%clk 0:02:59.5]}
2... c5 {[%clk 0:03:00]} 3. d5 {[%clk 0:02:56.6]} 3... e6 {[%clk 0:02:59.9]} 4.
Nc3 {[%clk 0:02:54.5]} 4... b5 {[%clk 0:03:00.2]} 5. dxe6 {[%clk 0:02:49.3]}
5... fxe6 {[%clk 0:03:01.1]} 6. Nxb5 {[%clk 0:02:40.9]} 6... d5 {[%clk
0:03:01.2]} 7. e3 {[%clk 0:02:28.5]} 7... a6 {[%clk 0:02:56.2]} 8. Nc3 {[%clk
0:02:27.2]} 8... Nc6 {[%clk 0:02:46.9]} 9. Bd3 {[%clk 0:02:06.1]} 9... Bd6
{[%clk 0:02:41.2]} 10. O-O {[%clk 0:01:59.1]} 10... O-O {[%clk 0:02:40.9]} 11.
b3 {[%clk 0:01:48.8]} 11... Rb8 {[%clk 0:02:23.3]} 12. Bb2 {[%clk 0:01:43.1]}
12... Qe8 {[%clk 0:02:02.4]} 13. Rb1 {[%clk 0:01:33.4]} 13... Qh5 {[%clk
0:01:59.2]} 14. Ne2 {[%clk 0:00:57.4]} 14... Ng4 {[%clk 0:01:17.7]} 15. Ng3
{[%clk 0:00:55.9]} 15... Bxg3 {[%clk 0:01:16.6]} 16. fxg3 {[%clk 0:00:43.6]}
16... Nxe3 {[%clk 0:00:48.3]} 17. Qe2 {[%clk 0:00:30.3]} 17... Nxf1 {[%clk
0:00:46.7]} 18. Rxf1 {[%clk 0:00:20.7]} 18... c4 {[%clk 0:00:44.3]} 19. Ba3
{[%clk 0:00:10.7]} 19... cxd3 {[%clk 0:00:42.2]} 20. cxd3 {[%clk 0:00:05.7]}
20... Rf7 {[%clk 0:00:40.2]} 21. Qc2 {[%clk 0:00:03.5]} 21... Bd7 {[%clk
0:00:37.5]} 22. Qc5 {[%clk 0:00:02.4]} 22... Ne5 {[%clk 0:00:32.5]} 23. Qd6
{[%clk 0:00:01.9]} 23... Nxf3+ {[%clk 0:00:31.1]} 24. Rxf3 {[%clk 0:00:01.9]}
24... Rc8 {[%clk 0:00:27.4]} 25. Rxf7 {[%clk 0:00:01.4]} 25... Qxf7 {[%clk
0:00:27.1]} 0-1

[Event "*** SCC Grand Prix: Titled Tuesday Blitz"]
[Site "Chess.com"]
[Date "2020.10.06"]
[Round "3"]
[White "Margarita2907"]
[Black "KatarinaOstojic"]
[Result "0-1"]
[WhiteElo "2197"]
[BlackElo "2365"]
[TimeControl "180+1"]
[EndTime "10:26:50 PDT"]
[Termination "KatarinaOstojic won by checkmate"]

1. e4 {[%clk 0:03:00.1]} 1... c5 {[%clk 0:03:00]} 2. Nf3 {[%clk 0:02:59.1]} 2...
d6 {[%clk 0:03:00.6]} 3. d4 {[%clk 0:02:56.7]} 3... cxd4 {[%clk 0:03:01.5]} 4.
Nxd4 {[%clk 0:02:57.2]} 4... Nf6 {[%clk 0:03:02.2]} 5. Nc3 {[%clk 0:02:56.5]}
5... a6 {[%clk 0:03:02.8]} 6. Be3 {[%clk 0:02:52]} 6... e5 {[%clk 0:03:02.4]} 7.
Nb3 {[%clk 0:02:51]} 7... Be6 {[%clk 0:03:03]} 8. f3 {[%clk 0:02:48.6]} 8... Be7
{[%clk 0:03:03.5]} 9. Qd2 {[%clk 0:02:47]} 9... O-O {[%clk 0:03:04.1]} 10. O-O-O
{[%clk 0:02:45.7]} 10... a5 {[%clk 0:03:04.5]} 11. Kb1 {[%clk 0:02:28.7]} 11...
a4 {[%clk 0:03:04.4]} 12. Nc1 {[%clk 0:02:27.7]} 12... a3 {[%clk 0:03:05]} 13.
b3 {[%clk 0:02:22.9]} 13... Nc6 {[%clk 0:03:05.5]} 14. Nd5 {[%clk 0:02:14.2]}
14... Bxd5 {[%clk 0:03:01.4]} 15. exd5 {[%clk 0:02:13.4]} 15... Nb8 {[%clk
0:03:00.6]} 16. g4 {[%clk 0:02:08.7]} 16... Qa5 {[%clk 0:02:56.3]} 17. Qxa5
{[%clk 0:01:58]} 17... Rxa5 {[%clk 0:02:57.2]} 18. c4 {[%clk 0:01:58.2]} 18...
Nbd7 {[%clk 0:02:54.1]} 19. Ne2 {[%clk 0:01:52.6]} 19... b5 {[%clk 0:02:48.1]}
20. Nc3 {[%clk 0:01:49.1]} 20... bxc4 {[%clk 0:02:45.7]} 21. Bxc4 {[%clk
0:01:45.1]} 21... Rc8 {[%clk 0:02:40.3]} 22. g5 {[%clk 0:01:33.2]} 22... Nh5
{[%clk 0:02:39.2]} 23. h4 {[%clk 0:01:32.5]} 23... g6 {[%clk 0:02:28.6]} 24. Ne4
{[%clk 0:01:23]} 24... f5 {[%clk 0:02:16.1]} 25. gxf6 {[%clk 0:01:20.9]} 25...
Nhxf6 {[%clk 0:02:16.1]} 26. Ng5 {[%clk 0:01:14.4]} 26... Raa8 {[%clk
0:02:08.1]} 27. Ne6 {[%clk 0:01:09.3]} 27... Rab8 {[%clk 0:02:05.6]} 28. Kc2
{[%clk 0:01:07.1]} 28... Nb6 {[%clk 0:01:43.2]} 29. Bxb6 {[%clk 0:01:02.6]}
29... Rxb6 {[%clk 0:01:44.1]} 30. Kd3 {[%clk 0:00:46.2]} 30... Nh5 {[%clk
0:01:26.7]} 31. Rde1 {[%clk 0:00:38.7]} 31... Ng3 {[%clk 0:01:26]} 32. Rhg1
{[%clk 0:00:35.7]} 32... Bxh4 {[%clk 0:01:25.5]} 33. Rd1 {[%clk 0:00:28.8]}
33... Nf5 {[%clk 0:01:25.1]} 34. Rd2 {[%clk 0:00:24.7]} 34... Bf6 {[%clk
0:01:24.4]} 35. Ke4 {[%clk 0:00:19.2]} 35... Ng7 {[%clk 0:01:24.3]} 36. Nxg7
{[%clk 0:00:14.7]} 36... Kxg7 {[%clk 0:01:25.2]} 37. Rh2 {[%clk 0:00:13.8]}
37... Rb4 {[%clk 0:01:19]} 38. Rgh1 {[%clk 0:00:12.4]} 38... h5 {[%clk
0:01:17.8]} 39. Rg2 {[%clk 0:00:10.4]} 39... Kf7 {[%clk 0:01:15.8]} 40. Rhg1
{[%clk 0:00:09.7]} 40... g5 {[%clk 0:01:15.9]} 41. Kf5 {[%clk 0:00:06.1]} 41...
Rcxc4 {[%clk 0:01:15.5]} 42. bxc4 {[%clk 0:00:03]} 42... Rxc4 {[%clk 0:01:16.4]}
43. Rxg5 {[%clk 0:00:02.1]} 43... Rf4# {[%clk 0:01:16.1]} 0-1

[Event "*** SCC Grand Prix: Titled Tuesday Blitz"]
[Site "Chess.com"]
[Date "2020.10.06"]
[Round "3"]
[White "WiktoriaPOL"]
[Black "VladimirBugayev"]
[Result "0-1"]
[WhiteElo "2048"]
[BlackElo "2312"]
[TimeControl "180+1"]
[EndTime "10:26:55 PDT"]
[Termination "VladimirBugayev won by resignation"]

1. c4 {[%clk 0:03:00.9]} 1... c6 {[%clk 0:02:56.1]} 2. Nf3 {[%clk 0:02:59.9]}
2... d5 {[%clk 0:02:56]} 3. e3 {[%clk 0:02:59]} 3... Nf6 {[%clk 0:02:54.6]} 4.
Nc3 {[%clk 0:02:57.4]} 4... g6 {[%clk 0:02:54.5]} 5. b3 {[%clk 0:02:56.8]} 5...
Bg7 {[%clk 0:02:55]} 6. Bb2 {[%clk 0:02:56.1]} 6... O-O {[%clk 0:02:55.4]} 7.
Be2 {[%clk 0:02:55.8]} 7... Bg4 {[%clk 0:02:45.7]} 8. O-O {[%clk 0:02:55.2]}
8... Bxf3 {[%clk 0:02:42.5]} 9. Bxf3 {[%clk 0:02:52.9]} 9... e6 {[%clk 0:02:43]}
10. cxd5 {[%clk 0:02:50]} 10... cxd5 {[%clk 0:02:39.8]} 11. d4 {[%clk
0:02:49.5]} 11... a6 {[%clk 0:02:27.8]} 12. Rc1 {[%clk 0:02:45]} 12... Nc6
{[%clk 0:02:13]} 13. Na4 {[%clk 0:02:21.4]} 13... Qd6 {[%clk 0:02:03.1]} 14. Nc5
{[%clk 0:02:18.4]} 14... b6 {[%clk 0:01:52.1]} 15. Nd3 {[%clk 0:02:16.7]} 15...
Ne4 {[%clk 0:01:38.7]} 16. Rc2 {[%clk 0:01:58.2]} 16... Rfc8 {[%clk 0:01:36.2]}
17. Qc1 {[%clk 0:01:57.3]} 17... Ne7 {[%clk 0:01:30.7]} 18. Ne5 {[%clk
0:01:08.1]} 18... Rxc2 {[%clk 0:01:28.6]} 19. Qxc2 {[%clk 0:01:07]} 19... Rc8
{[%clk 0:01:29.3]} 20. Qd3 {[%clk 0:01:01.5]} 20... Ng5 {[%clk 0:00:57.6]} 21.
Be2 {[%clk 0:00:53.1]} 21... b5 {[%clk 0:00:57.1]} 22. h4 {[%clk 0:00:49.4]}
22... f6 {[%clk 0:00:54.1]} 23. hxg5 {[%clk 0:00:47.9]} 23... fxe5 {[%clk
0:00:54]} 24. dxe5 {[%clk 0:00:46.4]} 24... Bxe5 {[%clk 0:00:54.2]} 25. Bxe5
{[%clk 0:00:45.8]} 25... Qxe5 {[%clk 0:00:54.4]} 26. f4 {[%clk 0:00:46]} 26...
Qc3 {[%clk 0:00:53.8]} 27. Kf2 {[%clk 0:00:32.7]} 27... Nf5 {[%clk 0:00:50.8]}
28. g4 {[%clk 0:00:31.7]} 28... Nd6 {[%clk 0:00:50.9]} 29. Qxc3 {[%clk
0:00:17.6]} 29... Ne4+ {[%clk 0:00:50.4]} 30. Kf3 {[%clk 0:00:16.1]} 30... Rxc3
{[%clk 0:00:50.9]} 31. Rd1 {[%clk 0:00:12.3]} 31... Rc2 {[%clk 0:00:50.3]} 32.
a4 {[%clk 0:00:06.4]} 32... bxa4 {[%clk 0:00:48.3]} 33. bxa4 {[%clk 0:00:05.3]}
33... a5 {[%clk 0:00:48.6]} 34. Rb1 {[%clk 0:00:03.7]} 34... Nd2+ {[%clk
0:00:35.3]} 0-1